bitfinex-derivatives/quotes_BNBF0:USTF0_20250908
["timestamp","ask_amount","ask_price","bid_price","bid_amount"]
[1757368990471,0.63325016,879.43,877.58,0.19761106]
[1757368990675,0.63325016,879.42,877.58,0.19761106]
[1757368990873,0.63325016,879.41,877.58,0.19761106]
[1757368991172,0.63325016,879.4,877.58,0.19761106]
[1757368991472,0.63325016,879.39,877.58,0.19761106]
[1757368991675,0.63325016,879.38,877.58,0.19761106]
[1757368991873,0.63325016,879.37,877.58,0.19761106]
[1757368992076,0.63325016,879.36,877.58,0.19761106]
[1757368992274,0.63325016,879.35,877.58,0.19761106]
[1757368992476,0.63325016,879.34,877.58,0.19761106]
[1757368992676,0.63325016,879.33,877.58,0.19761106]
[1757368992876,0.63325016,879.32,877.58,0.19761106]
[1757368993079,0.63325016,879.31,877.58,0.19761106]
[1757368993280,0.63325016,879.3,877.58,0.19761106]
[1757368993480,0.63325016,879.29,877.58,0.19761106]
[1757368993685,0.63325016,879.28,877.58,0.19761106]
[1757368993982,0.63325016,879.27,877.58,0.19761106]
[1757368994181,0.63325016,879.26,877.58,0.19761106]
[1757368994380,0.63325016,879.25,877.58,0.19761106]
[1757368994580,0.63325016,879.24,877.58,0.19761106]
[1757368994880,0.63325016,879.23,877.58,0.19761106]
[1757368995085,0.63325016,879.22,877.58,0.19761106]
[1757368995284,0.63325016,879.21,877.58,0.19761106]
[1757368995479,0.63325016,879.2,877.58,0.19761106]
[1757368995784,0.63325016,879.19,877.58,0.19761106]
[1757368995981,0.63325016,879.18,877.58,0.19761106]
[1757368996184,0.63325016,879.17,877.58,0.19761106]
[1757368996381,1.5209519,879.31,877.58,0.19761106]
[1757368996382,0.63325016,879.16,877.58,0.19761106]
[1757368996585,0.63325016,879.15,877.58,0.19761106]
[1757368996783,0.63325016,879.14,877.58,0.19761106]
[1757368996986,1.5209519,879.31,877.58,0.19761106]
[1757368997184,0.63455029,879.3,877.58,0.19761106]
[1757368997385,0.63455029,879.29,877.58,0.19761106]
[1757368997583,0.63455029,879.28,877.58,0.19761106]
[1757368997785,0.63455029,879.27,877.58,0.19761106]
[1757368997987,0.63455029,879.26,877.58,0.19761106]
[1757368998188,0.63455029,879.25,877.58,0.19761106]
[1757368998387,0.63455029,879.24,877.58,0.19761106]
[1757368998686,0.63455029,879.23,877.58,0.19761106]
[1757368998884,0.63455029,879.22,877.58,0.19761106]
[1757368999184,0.63455029,879.21,877.58,0.19761106]
[1757368999487,0.63455029,879.2,877.58,0.19761106]
[1757368999687,0.63455029,879.19,877.58,0.19761106]
[1757368999888,0.63455029,879.18,877.58,0.19761106]
[1757369000189,0.63455029,879.17,877.58,0.19761106]
[1757369000385,0.63455029,879.16,877.58,0.19761106]
[1757369000689,0.63455029,879.15,877.58,0.19761106]
[1757369000889,1.5209519,879.28,877.58,0.19761106]
[1757369000890,0.63455029,879.14,877.58,0.19761106]
[1757369001186,0.63455029,879.13,877.58,0.19761106]
[1757369001489,0.63455029,879.12,877.58,0.19761106]
[1757369001689,0.63455029,879.11,877.58,0.19761106]
[1757369001989,0.63455029,879.1,877.58,0.19761106]
[1757369002290,0.63455029,879.09,877.58,0.19761106]
[1757369002585,1.5209519,879.29,877.58,0.19761106]
[1757369002790,0.63497572,879.28,877.58,0.19761106]
[1757369003088,0.63497572,879.27,877.58,0.19761106]
[1757369003284,0.63497572,879.26,877.58,0.19761106]
[1757369003490,0.63497572,879.25,877.58,0.19761106]
[1757369003688,0.63497572,879.24,877.58,0.19761106]
[1757369003886,0.63497572,879.23,877.58,0.19761106]
[1757369004086,0.63497572,879.22,877.58,0.19761106]
[1757369004388,1.5209519,879.15,877.58,0.19761106]
[1757369004587,0.63497572,879.14,877.58,0.19761106]
[1757369004787,0.63497572,879.13,877.58,0.19761106]
[1757369005089,0.63497572,879.12,877.58,0.19761106]
[1757369005286,0.63497572,879.11,877.58,0.19761106]
[1757369005490,0.63497572,879.1,877.58,0.19761106]
[1757369005691,0.63497572,879.09,877.58,0.19761106]
[1757369005891,1.5209519,879.15,877.58,0.19761106]
[1757369006187,0.63526136,879.14,877.58,0.19761106]
[1757369006491,0.63526136,879.13,877.58,0.19761106]
[1757369006690,0.63526136,879.12,877.58,0.19761106]
[1757369006888,0.63526136,879.11,877.58,0.19761106]
[1757369007088,0.63526136,879.1,877.58,0.19761106]
[1757369007287,0.63526136,879.09,877.58,0.19761106]
[1757369007488,0.63526136,879.08,877.58,0.19761106]
[1757369007792,0.63526136,879.07,877.58,0.19761106]
[1757369007993,0.63526136,879.06,877.58,0.19761106]
[1757369008191,0.63526136,879.05,877.58,0.19761106]
[1757369008388,0.63526136,879.04,877.58,0.19761106]
[1757369008591,0.63526136,879.03,877.58,0.19761106]
[1757369008790,1.5209519,879.24,877.58,0.19761106]
[1757369008990,0.63554527,879.23,877.58,0.19761106]
[1757369009189,0.63554527,879.22,877.58,0.19761106]
[1757369009392,0.63554527,879.21,877.58,0.19761106]
[1757369009690,0.63554527,879.2,877.58,0.19761106]
[1757369009888,0.63554527,879.19,877.58,0.19761106]
[1757369010092,0.63554527,879.18,877.58,0.19761106]
[1757369010292,0.63554527,879.17,877.58,0.19761106]
[1757369010490,0.63554527,879.16,877.58,0.19761106]
[1757369010694,0.63554527,879.15,877.58,0.19761106]
[1757369010989,0.63554527,879.14,877.58,0.19761106]
[1757369011193,0.63554527,879.13,877.58,0.19761106]
[1757369011393,0.63554527,879.12,877.58,0.19761106]
[1757369011593,0.63554527,879.11,877.58,0.19761106]
[1757369011889,0.63554527,879.1,877.58,0.19761106]
[1757369012094,0.63554527,879.09,877.58,0.19761106]
[1757369012292,0.63554527,879.08,877.58,0.19761106]
[1757369012591,0.63554527,879.07,877.58,0.19761106]
[1757369012791,0.63554527,879.06,877.58,0.19761106]
[1757369013089,0.63554527,879.05,877.58,0.19761106]
[1757369013290,0.63554527,879.04,877.58,0.19761106]
[1757369013491,0.63554527,879.03,877.58,0.19761106]
[1757369013692,0.63554527,879.02,877.58,0.19761106]
[1757369013892,0.63554527,879.01,877.58,0.19761106]
[1757369014093,0.63554527,879.0,877.58,0.19761106]
[1757369014291,0.63554527,878.99,877.58,0.19761106]
[1757369014491,0.63554527,878.98,877.58,0.19761106]
[1757369014692,0.63554527,878.97,877.58,0.19761106]
[1757369014891,0.63554527,878.96,877.58,0.19761106]
[1757369015090,0.63554527,878.95,877.58,0.19761106]
[1757369015290,0.63554527,878.94,877.58,0.19761106]
[1757369015495,0.63554527,878.93,877.58,0.19761106]
[1757369015695,0.63554527,878.92,877.58,0.19761106]
[1757369015895,0.63554527,878.91,877.58,0.19761106]
[1757369016094,1.5209519,879.01,877.58,0.19761106]
[1757369016295,1.5209519,879.06,877.58,0.19761106]
[1757369016497,0.63701826,879.05,876.98,2.5308841]
[1757369016792,0.63701826,879.04,877.72,0.19770761]
[1757369017091,0.63701826,879.04,876.98,2.5308841]
[1757369017092,0.63701826,879.03,877.0,2.5308841]
[1757369017411,0.63701826,879.02,877.84,0.19769638]
[1757369017695,1.5209519,879.22,877.02,2.5308841]
[1757369017894,0.63706575,879.21,877.95,0.19769638]
[1757369018095,0.63706575,879.2,876.73,2.5308841]
[1757369018293,0.63706575,879.19,876.73,2.5308841]
[1757369018495,0.63706575,879.18,878.07,0.19768459]
[1757369018693,0.63706575,879.17,876.74,2.5308841]
[1757369018895,0.63706575,879.16,878.17,0.197702]
[1757369019194,0.63706575,879.15,876.63,2.5308841]
[1757369019493,0.63706575,879.14,878.26,0.19770312]
[1757369019694,0.63706575,879.13,876.64,2.5308841]
[1757369019893,0.63706575,879.12,876.64,2.5308841]
[1757369020195,0.63706575,879.11,878.34,0.19771042]
[1757369020500,0.63706575,879.1,877.25,0.19771098]
[1757369020699,0.63706575,879.09,877.25,0.19771098]
[1757369020892,0.63706575,879.08,877.25,0.19771098]
[1757369021095,0.63706575,879.07,877.25,0.19771098]
[1757369021295,1.5209519,879.31,877.25,0.19771098]
[1757369021296,0.63706575,879.06,877.25,0.19771098]
[1757369021494,0.63706575,879.05,877.25,0.19771098]
[1757369021699,0.63706575,879.04,877.25,0.19771098]
[1757369021898,0.63706575,879.03,877.25,0.19771098]
[1757369022093,0.63706575,879.02,877.25,0.19771098]
[1757369022293,1.5209519,879.3,877.25,0.19771098]
[1757369022595,0.63730582,879.29,877.25,0.19771098]
[1757369022795,0.63730582,879.28,877.25,0.19771098]
[1757369023098,0.63730582,879.27,877.25,0.19771098]
[1757369023298,0.63730582,879.26,877.25,0.19771098]
[1757369023500,1.5209519,879.22,877.25,0.19771098]
[1757369023700,0.63730582,879.21,877.25,0.19771098]
[1757369023897,0.63730582,879.2,877.25,0.19771098]
[1757369024100,0.63730582,879.19,877.25,0.19771098]
[1757369024297,0.63730582,879.18,877.25,0.19771098]
[1757369024600,0.63730582,879.17,877.25,0.19771098]
[1757369024801,0.63730582,879.16,877.25,0.19771098]
[1757369025100,0.63730582,879.15,877.25,0.19771098]
[1757369025300,1.5209519,879.21,877.25,0.19771098]
[1757369025301,0.63730582,879.14,877.25,0.19771098]
[1757369025496,0.63730582,879.13,877.25,0.19771098]
[1757369025701,0.63730582,879.12,877.25,0.19771098]
[1757369025996,0.63730582,879.11,877.25,0.19771098]
[1757369026197,0.63730582,879.1,877.25,0.19771098]
[1757369026402,0.63730582,879.09,877.25,0.19771098]
[1757369026598,0.63730582,879.08,877.25,0.19771098]
[1757369026798,0.63730582,879.07,877.25,0.19771098]
[1757369026999,0.63730582,879.06,877.25,0.19771098]
[1757369027298,0.63730582,879.05,877.25,0.19771098]
[1757369027499,0.63730582,879.04,877.25,0.19771098]
[1757369027696,0.63730582,879.03,877.25,0.19771098]
[1757369027899,0.63730582,879.02,877.25,0.19771098]
[1757369028101,1.5209519,878.96,877.25,0.19771098]
[1757369028303,0.63730582,878.95,877.25,0.19771098]
[1757369028500,0.63730582,878.94,877.25,0.19771098]
[1757369028701,0.63730582,878.93,877.25,0.19771098]
[1757369028900,0.63730582,878.92,877.25,0.19771098]
[1757369029101,0.63730582,878.91,877.25,0.19771098]
[1757369029300,0.63730582,878.9,877.25,0.19771098]
[1757369029601,0.63730582,878.89,877.25,0.19771098]
[1757369029806,0.63730582,878.88,877.25,0.19771098]
[1757369030105,1.5209519,878.97,877.25,0.19771098]
[1757369030106,0.63730582,878.87,877.25,0.19771098]
[1757369030306,0.63730582,878.86,877.25,0.19771098]
[1757369030606,1.5209519,878.99,877.25,0.19771098]
[1757369030805,0.63804315,878.98,877.25,0.19771098]
[1757369031002,0.63804315,878.97,877.25,0.19771098]
[1757369031202,0.63804315,878.96,877.25,0.19771098]
[1757369031402,0.63804315,878.95,877.25,0.19771098]
[1757369031608,0.63804315,878.94,877.25,0.19771098]
[1757369031909,0.63804315,878.93,877.25,0.19771098]
[1757369032206,0.63804315,878.92,877.25,0.19771098]
[1757369032505,0.63804315,878.91,877.25,0.19771098]
[1757369032803,0.63804315,878.9,877.25,0.19771098]
[1757369033004,0.63804315,878.89,877.25,0.19771098]
[1757369033202,0.63804315,878.88,877.25,0.19771098]
[1757369033505,0.63804315,878.87,877.25,0.19771098]
[1757369033702,0.63804315,878.86,877.25,0.19771098]
[1757369033905,1.5209519,878.97,877.25,0.19771098]
[1757369034206,0.63805612,878.96,877.25,0.19771098]
[1757369034402,0.63805612,878.95,877.25,0.19771098]
[1757369034706,0.63805612,878.94,877.25,0.19771098]
[1757369034903,0.63805612,878.93,877.25,0.19771098]
[1757369035101,0.63805612,878.92,877.25,0.19771098]
[1757369035306,0.63805612,878.91,877.25,0.19771098]
[1757369035505,0.63805612,878.9,877.25,0.19771098]
[1757369035704,0.63805612,878.89,877.25,0.19771098]
[1757369035904,0.63805612,878.88,877.25,0.19771098]
[1757369036109,0.63805612,878.87,877.25,0.19771098]
[1757369036309,0.63805612,878.86,877.25,0.19771098]
[1757369036510,1.5209519,878.97,877.25,0.19771098]
[1757369036709,0.63812268,878.96,877.25,0.19771098]
[1757369036913,0.63812268,878.95,877.25,0.19771098]
[1757369037113,0.63812268,878.94,877.25,0.19771098]
[1757369037311,0.63812268,878.93,877.25,0.19771098]
[1757369037510,0.63812268,878.92,877.25,0.19771098]
[1757369037815,0.63812268,878.91,877.25,0.19771098]
[1757369038015,0.63812268,878.9,877.25,0.19771098]
[1757369038212,0.63812268,878.89,877.25,0.19771098]
[1757369038412,0.63812268,878.88,877.25,0.19771098]
[1757369038716,0.63812268,878.87,877.25,0.19771098]
[1757369039015,0.63812268,878.86,877.25,0.19771098]
[1757369039217,0.63812268,878.85,877.25,0.19771098]
[1757369039517,0.63812268,878.84,877.25,0.19771098]
[1757369039715,0.63812268,878.83,877.25,0.19771098]
[1757369039916,0.63812268,878.82,877.25,0.19771098]
[1757369040217,0.63812268,878.81,877.25,0.19771098]
[1757369040515,0.63812268,878.8,877.25,0.19771098]
[1757369040717,0.63812268,878.79,877.25,0.19771098]
[1757369040913,0.63812268,878.78,877.25,0.19771098]
[1757369041216,0.63812268,878.77,877.25,0.19771098]
[1757369041417,0.63812268,878.76,877.25,0.19771098]
[1757369041716,0.63812268,878.75,877.25,0.19771098]
[1757369041917,0.63812268,878.74,877.25,0.19771098]
[1757369042117,0.63812268,878.73,877.25,0.19771098]
[1757369042317,0.63812268,878.72,877.25,0.19771098]
[1757369042618,0.63812268,878.71,877.25,0.19771098]
[1757369042819,0.63812268,878.7,877.25,0.19771098]
[1757369043020,0.63812268,878.69,877.25,0.19771098]
[1757369043321,0.63812268,878.68,877.25,0.19771098]
[1757369043616,0.63812268,878.67,877.25,0.19771098]
[1757369043819,1.5209519,878.91,877.25,0.19771098]
[1757369044020,0.63841973,878.9,877.25,0.19771098]
[1757369044315,0.63841973,878.89,877.25,0.19771098]
[1757369044523,0.63841973,878.88,877.25,0.19771098]
[1757369044716,0.63841973,878.87,877.25,0.19771098]
[1757369045019,0.63841973,878.86,877.25,0.19771098]
[1757369045217,0.63841973,878.85,877.25,0.19771098]
[1757369045422,0.63841973,878.84,877.25,0.19771098]
[1757369045622,0.63841973,878.83,877.25,0.19771098]
[1757369045818,0.63841973,878.82,877.25,0.19771098]
[1757369046019,0.63841973,878.81,877.25,0.19771098]
[1757369046221,0.63841973,878.8,877.25,0.19771098]
[1757369046422,0.63841973,878.79,877.25,0.19771098]
[1757369046620,0.63841973,878.78,877.25,0.19771098]
[1757369046820,0.63841973,878.77,877.25,0.19771098]
[1757369047120,0.63841973,878.76,877.25,0.19771098]
[1757369047323,0.63841973,878.75,877.25,0.19771098]
[1757369047623,0.63841973,878.74,877.25,0.19771098]
[1757369047818,0.63841973,878.73,877.25,0.19771098]
[1757369048022,0.63841973,878.72,877.25,0.19771098]
[1757369048223,0.63841973,878.71,877.25,0.19771098]
[1757369048423,0.63841973,878.7,877.25,0.19771098]
[1757369048720,0.63841973,878.69,877.25,0.19771098]
[1757369048924,0.63841973,878.68,877.25,0.19771098]
[1757369049224,1.5209519,879.12,877.25,0.19771098]
[1757369049525,0.63904412,879.11,877.25,0.19771098]
[1757369049724,0.63904412,879.1,877.25,0.19771098]
[1757369049919,0.63904412,879.09,877.25,0.19771098]
[1757369050119,0.63904412,879.08,877.25,0.19771098]
[1757369050320,0.63904412,879.07,877.25,0.19771098]
[1757369050519,0.63904412,879.06,877.25,0.19771098]
[1757369050719,0.63904412,879.05,877.25,0.19771098]
[1757369050923,0.63904412,879.04,877.25,0.19771098]
[1757369051122,0.63904412,879.03,877.25,0.19771098]
[1757369051424,0.63904412,879.02,877.25,0.19771098]
[1757369051624,0.63904412,879.01,877.25,0.19771098]
[1757369051821,0.63904412,879.0,877.25,0.19771098]
[1757369052025,0.63904412,878.99,877.25,0.19771098]
[1757369052225,0.63904412,878.98,877.25,0.19771098]
[1757369052426,0.63904412,878.97,877.25,0.19771098]
[1757369052625,0.63904412,878.96,877.25,0.19771098]
[1757369052821,0.63904412,878.95,877.25,0.19771098]
[1757369053022,0.63904412,878.94,877.25,0.19771098]
[1757369053225,0.63904412,878.93,877.25,0.19771098]
[1757369053425,0.63904412,878.92,877.25,0.19771098]
[1757369053626,0.63904412,878.91,877.25,0.19771098]
[1757369053827,0.63904412,878.9,877.25,0.19771098]
[1757369054126,0.63904412,878.89,877.25,0.19771098]
[1757369054328,0.63904412,878.88,877.25,0.19771098]
[1757369054523,0.63904412,878.87,877.25,0.19771098]
[1757369054724,0.63904412,878.86,877.25,0.19771098]
[1757369055023,0.63904412,878.85,877.25,0.19771098]
[1757369055227,1.5209519,879.18,877.25,0.19771098]
[1757369055228,0.63904412,878.84,877.25,0.19771098]
[1757369055425,0.63904412,878.83,877.25,0.19771098]
[1757369055625,0.63904412,878.82,877.25,0.19771098]
[1757369055825,0.63904412,878.81,877.25,0.19771098]
[1757369056028,0.63904412,878.8,877.25,0.19771098]
[1757369056229,0.63904412,878.79,877.25,0.19771098]
[1757369056428,0.63904412,878.78,877.25,0.19771098]
[1757369056629,0.63904412,878.77,877.25,0.19771098]
[1757369056924,0.63904412,878.76,877.25,0.19771098]
[1757369057125,0.63904412,878.75,877.25,0.19771098]
[1757369057329,0.63904412,878.74,877.25,0.19771098]
[1757369057525,0.63904412,878.73,877.25,0.19771098]
[1757369057726,0.63904412,878.72,877.25,0.19771098]
[1757369057929,0.63904412,878.71,877.25,0.19771098]
[1757369058229,0.63904412,878.7,877.25,0.19771098]
[1757369058430,0.63904412,878.69,877.25,0.19771098]
[1757369058729,1.5209519,878.9,877.25,0.19771098]
[1757369058929,0.64092579,878.89,877.25,0.19771098]
[1757369059127,0.64092579,878.88,877.25,0.19771098]
[1757369059431,0.64092579,878.87,877.25,0.19771098]
[1757369059629,0.64092579,878.86,877.25,0.19771098]
[1757369059830,0.64092579,878.85,877.25,0.19771098]
[1757369060030,0.64092579,878.84,877.25,0.19771098]
[1757369060227,0.64092579,878.83,877.25,0.19771098]
[1757369060427,0.64092579,878.82,877.25,0.19771098]
[1757369060726,0.64092579,878.81,877.25,0.19771098]
[1757369060927,0.64092579,878.8,877.25,0.19771098]
[1757369061130,0.64092579,878.79,877.25,0.19771098]
[1757369061330,0.64092579,878.78,877.25,0.19771098]
[1757369061630,0.64092579,878.77,877.25,0.19771098]
[1757369061830,0.64092579,878.76,877.25,0.19771098]
[1757369062126,0.64092579,878.75,877.25,0.19771098]
[1757369062326,0.64092579,878.74,877.25,0.19771098]
[1757369062529,0.64092579,878.73,877.25,0.19771098]
[1757369062729,0.64092579,878.72,877.25,0.19771098]
[1757369062930,0.64092579,878.71,877.25,0.19771098]
[1757369063127,0.64092579,878.7,877.25,0.19771098]
[1757369063330,1.5209519,878.85,877.25,0.19771098]
[1757369063331,0.64092579,878.69,877.25,0.19771098]
[1757369063532,0.64092579,878.68,877.25,0.19771098]
[1757369063729,0.64092579,878.67,877.25,0.19771098]
[1757369063933,0.64092579,878.66,877.25,0.19771098]
[1757369064133,0.64092579,878.65,877.25,0.19771098]
[1757369064333,0.64092579,878.64,877.25,0.19771098]
[1757369064635,1.5209519,878.84,877.25,0.19771098]
[1757369064833,1.5209519,878.75,877.25,0.19771098]
[1757369065031,1.5209519,878.65,877.25,0.19771098]
[1757369065332,0.64114211,878.64,877.25,0.19771098]
[1757369065537,0.64114211,878.63,877.25,0.19771098]
[1757369065836,0.64114211,878.62,877.25,0.19771098]
[1757369066136,1.5209519,878.64,877.25,0.19771098]
[1757369066137,0.64114211,878.61,877.25,0.19771098]
[1757369066336,0.64114211,878.6,877.25,0.19771098]
[1757369066530,0.64114211,878.59,877.25,0.19771098]
[1757369066736,0.64114211,878.58,877.25,0.19771098]
[1757369067036,0.64114211,878.57,877.25,0.19771098]
[1757369067332,0.64114211,878.56,877.25,0.19771098]
[1757369067536,0.64114211,878.55,877.25,0.19771098]
[1757369067734,0.64114211,878.54,877.25,0.19771098]
[1757369067935,0.64114211,878.53,877.25,0.19771098]
[1757369068133,1.5209519,878.65,877.25,0.19771098]
[1757369068333,0.6432507,878.64,877.25,0.19771098]
[1757369068532,0.6432507,878.63,877.25,0.19771098]
[1757369068732,0.6432507,878.62,877.25,0.19771098]
[1757369068937,0.6432507,878.61,877.25,0.19771098]
[1757369069237,0.6432507,878.6,877.25,0.19771098]
[1757369069433,0.6432507,878.59,877.25,0.19771098]
[1757369069736,0.6432507,878.58,877.25,0.19771098]
[1757369069940,0.6432507,878.57,877.25,0.19771098]
[1757369070134,0.6432507,878.56,877.25,0.19771098]
[1757369070339,0.6432507,878.55,877.25,0.19771098]
[1757369070634,0.6432507,878.54,877.25,0.19771098]
[1757369070836,0.6432507,878.53,877.25,0.19771098]
[1757369071134,0.6432507,878.52,877.25,0.19771098]
[1757369071439,1.5209519,878.65,877.25,0.19771098]
[1757369071640,0.64321135,878.64,877.25,0.19771098]
[1757369071838,0.64321135,878.63,877.25,0.19771098]
[1757369072037,0.64321135,878.62,877.25,0.19771098]
[1757369072241,0.64321135,878.61,877.25,0.19771098]
[1757369072439,0.64321135,878.6,877.25,0.19771098]
[1757369072640,0.64321135,878.59,877.25,0.19771098]
[1757369072844,0.64321135,878.58,877.25,0.19771098]
[1757369073143,0.64321135,878.57,877.25,0.19771098]
[1757369073343,0.64321135,878.56,877.25,0.19771098]
[1757369073538,0.64321135,878.55,877.25,0.19771098]
[1757369073739,0.64321135,878.54,877.25,0.19771098]
[1757369074044,0.64321135,878.53,877.25,0.19771098]
[1757369074244,0.64321135,878.52,877.25,0.19771098]
[1757369074441,0.64321135,878.51,877.25,0.19771098]
[1757369074641,0.64321135,878.5,877.25,0.19771098]
[1757369074942,0.64321135,878.49,877.25,0.19771098]
[1757369075239,1.5209519,878.74,877.25,0.19771098]
[1757369075240,0.64321135,878.48,877.25,0.19771098]
[1757369075444,0.64321135,878.47,877.25,0.19771098]
[1757369075644,0.64321135,878.46,877.25,0.19771098]
[1757369075943,0.64321135,878.45,877.25,0.19771098]
[1757369076140,0.64321135,878.44,877.25,0.19771098]
[1757369076342,0.64321135,878.43,877.25,0.19771098]
[1757369076645,1.5209519,878.27,877.25,0.19771098]
[1757369076842,0.64321135,878.26,877.25,0.19771098]
[1757369077041,0.64321135,878.25,877.25,0.19771098]
[1757369077244,0.64321135,878.24,877.25,0.19771098]
[1757369077445,0.64321135,878.23,877.25,0.19771098]
[1757369077642,0.64321135,878.22,877.25,0.19771098]
[1757369077941,0.64321135,878.21,877.25,0.19771098]
[1757369078145,1.5209519,878.32,877.25,0.19771098]
[1757369078345,2.16419884,878.31,877.25,0.19771098]
[1757369078645,0.64324694,878.3,877.25,0.19771098]
[1757369078845,0.64324694,878.29,877.25,0.19771098]
[1757369079046,1.5209519,878.27,877.25,0.19771098]
[1757369079246,0.64324694,878.26,877.25,0.19771098]
[1757369079544,0.64324694,878.25,877.25,0.19771098]
[1757369079751,0.64324694,878.24,877.25,0.19771098]
[1757369079952,0.64324694,878.23,877.25,0.19771098]
[1757369080251,0.64324694,878.22,877.25,0.19771098]
[1757369080451,0.64324694,878.21,877.25,0.19771098]
[1757369080752,0.64324694,878.2,877.25,0.19771098]
[1757369080952,0.64324694,878.19,877.25,0.19771098]
[1757369081151,0.64324694,878.18,877.25,0.19771098]
[1757369081451,0.64324694,878.17,877.25,0.19771098]
[1757369081651,1.5209519,878.28,877.25,0.19771098]
[1757369081652,0.64324694,878.16,877.25,0.19771098]
[1757369081852,0.64324694,878.15,877.25,0.19771098]
[1757369082052,1.5209519,878.27,877.25,0.19771098]
[1757369082352,0.642636,878.26,877.25,0.19771098]
[1757369082550,0.642636,878.25,877.25,0.19771098]
[1757369082750,0.642636,878.24,877.25,0.19771098]
[1757369082952,0.642636,878.23,877.25,0.19771098]
[1757369083149,0.642636,878.22,877.25,0.19771098]
[1757369083349,0.642636,878.21,877.25,0.19771098]
[1757369083553,0.642636,878.2,877.25,0.19771098]
[1757369083753,0.642636,878.19,877.25,0.19771098]
[1757369083954,0.642636,878.18,877.25,0.19771098]
[1757369084155,0.642636,878.17,877.25,0.19771098]
[1757369084451,0.642636,878.16,877.25,0.19771098]
[1757369084654,1.5209519,878.28,877.25,0.19771098]
[1757369084851,0.64222395,878.27,877.25,0.19771098]
[1757369085054,0.64222395,878.26,877.25,0.19771098]
[1757369085253,0.64222395,878.25,877.25,0.19771098]
[1757369085452,0.64222395,878.24,877.25,0.19771098]
[1757369085655,0.64222395,878.23,877.25,0.19771098]
[1757369085852,0.64222395,878.22,877.25,0.19771098]
[1757369086152,0.64222395,878.21,877.25,0.19771098]
[1757369086351,0.64222395,878.2,877.25,0.19771098]
[1757369086556,0.64222395,878.19,877.25,0.19771098]
[1757369086756,0.64222395,878.18,877.25,0.19771098]
[1757369087055,1.5209519,878.3,877.25,0.19771098]
[1757369087252,0.64202871,878.29,877.25,0.19771098]
[1757369087558,0.64202871,878.28,877.25,0.19771098]
[1757369087752,0.64202871,878.27,877.25,0.19771098]
[1757369087950,0.64202871,878.26,877.25,0.19771098]
[1757369088152,0.64202871,878.25,877.25,0.19771098]
[1757369088354,0.64202871,878.24,877.25,0.19771098]
[1757369088650,0.64202871,878.23,877.25,0.19771098]
[1757369088854,0.64202871,878.22,877.25,0.19771098]
[1757369089052,0.64202871,878.21,877.25,0.19771098]
[1757369089252,0.64202871,878.2,877.25,0.19771098]
[1757369089453,0.64202871,878.19,877.25,0.19771098]
[1757369089653,0.64202871,878.18,877.25,0.19771098]
[1757369089857,0.64202871,878.17,877.25,0.19771098]
[1757369090153,1.5209519,878.24,877.25,0.19771098]
[1757369090457,2.16275451,878.23,877.25,0.19771098]
[1757369090651,0.64180261,878.22,877.25,0.19771098]
[1757369090953,0.64180261,878.21,877.25,0.19771098]
[1757369091153,0.64180261,878.2,877.25,0.19771098]
[1757369091352,0.64180261,878.19,877.25,0.19771098]
[1757369091555,0.64180261,878.18,877.25,0.19771098]
[1757369091752,0.64180261,878.17,877.25,0.19771098]
[1757369091957,1.5209519,878.22,877.25,0.19771098]
[1757369092157,0.64177544,878.21,877.25,0.19771098]
[1757369092351,0.64177544,878.2,877.25,0.19771098]
[1757369092556,0.64177544,878.19,877.25,0.19771098]
[1757369092753,0.64177544,878.18,877.25,0.19771098]
[1757369092953,0.64177544,878.17,877.25,0.19771098]
[1757369093158,1.5209519,878.22,877.25,0.19771098]
[1757369093454,0.64175783,878.21,877.25,0.19771098]
[1757369093653,0.64175783,878.2,877.25,0.19771098]
[1757369093953,0.64175783,878.19,877.25,0.19771098]
[1757369094154,0.64175783,878.18,877.25,0.19771098]
[1757369094359,1.5209519,878.22,877.25,0.19771098]
[1757369094658,1.5209519,878.18,877.25,0.19771098]
[1757369095857,3.5710953,879.03,877.25,0.19771098]
[1757369095858,1.5209519,878.19,877.25,0.19771098]
[1757369096058,0.64179007,878.18,877.25,0.19771098]
[1757369096258,1.5209519,878.19,877.25,0.19771098]
[1757369096455,0.64182583,878.18,877.25,0.19771098]
[1757369096661,1.5209519,878.19,877.25,0.19771098]
[1757369096859,0.64182583,878.18,877.25,0.19771098]
[1757369097058,1.5209519,878.19,877.25,0.19771098]
[1757369097361,0.64189019,878.18,877.25,0.19771098]
[1757369097559,1.5209519,878.19,877.25,0.19771098]
[1757369097860,0.64186938,878.18,877.25,0.19771098]
[1757369098055,1.5209519,878.19,877.25,0.19771098]
[1757369098256,0.64186938,878.18,877.25,0.19771098]
[1757369098460,1.5209519,878.19,877.25,0.19771098]
[1757369098658,0.6419254,878.18,877.25,0.19771098]
[1757369098958,1.5209519,878.19,877.25,0.19771098]
[1757369099258,1.5209519,878.2,877.25,0.19771098]
[1757369099457,2.16293867,878.19,877.25,0.19771098]
[1757369099661,2.16293867,878.18,877.25,0.19771098]
[1757369099863,1.5209519,878.18,877.25,0.19771098]
[1757369100156,1.5209519,878.19,877.25,0.19771098]
[1757369100761,1.5209519,878.28,877.25,0.19771098]
[1757369100960,0.64195326,878.27,877.25,0.19771098]
[1757369101161,0.64195326,878.26,877.25,0.19771098]